fUST/lending_fUST_20260114
["ID","MTS","AMOUNT","RATE_DAILY","PERIOD"]
[401906460,1768399842523,-636.78829679,0.00013698,2]
[401906461,1768399842533,-800.23,0.00013698,2]
[401906462,1768399842543,-800.23,0.00013698,2]
[401906463,1768399842552,-800.23,0.00013698,2]
[401906464,1768399842563,-800.23,0.00013698,2]
[401906465,1768399842573,-800.23,0.00013698,2]
[401906466,1768399842582,-800.23,0.00013698,2]
[401906467,1768399842592,-800.23,0.00013698,2]
[401906468,1768399842601,-800.23,0.00013698,2]
[401906469,1768399842611,-800.23,0.00013698,2]
[401906470,1768399842621,-800.23,0.00013698,2]
[401906471,1768399842634,-800.23,0.00013698,2]
[401906472,1768399842645,-800.23,0.00013698,2]
[401906473,1768399842655,-800.23,0.00013698,2]
[401906474,1768399842664,-800.23,0.00013698,2]
[401906475,1768399842674,-800.23,0.00013698,2]
[401906476,1768399842683,-800.23,0.00013698,2]
[401906477,1768399842693,-800.23,0.00013698,2]
[401906478,1768399842702,-800.23,0.00013698,2]
[401906479,1768399842711,-800.23,0.00013698,2]
[401906480,1768399842720,-800.23,0.00013698,2]
[401906481,1768399842729,-800.23,0.00013698,2]
[401906482,1768399842738,-800.23,0.00013698,2]
[401906483,1768399842747,-800.23,0.00013698,2]
[401906484,1768399842757,-800.43872931,0.00013698,2]
[401906485,1768399842767,-500.0,0.00013698,2]
[401906486,1768399842776,-500.0,0.00013698,2]
[401906487,1768399842785,-633.96263391,0.00013698,2]
[401906488,1768399842794,-500.0,0.00013698,2]
[401906489,1768399842804,-500.0,0.00013698,2]
[401906490,1768399842814,-500.0,0.00013698,2]
[401906491,1768399842824,-500.0,0.00013698,2]
[401906492,1768399842834,-500.0,0.00013698,2]
[401906493,1768399842844,-500.0,0.00013698,2]
[401906494,1768399842853,-509.06636441,0.00013698,2]
[401906495,1768399842862,-1000.0,0.00013699,2]
[401906496,1768399842871,-154943.1495628,0.00013699,2]
[401906497,1768399842883,-500.0,0.00013699,2]
[401906498,1768399842891,-500.0,0.00013699,2]
[401906499,1768399842900,-500.0,0.00013699,2]
[401906500,1768399842910,-500.64767098,0.00013699,2]
[401906501,1768399842920,-504.50322617,0.00013699,2]
[401906502,1768399842930,-500.0,0.00013699,2]
[401906503,1768399842939,-500.0,0.00013699,2]
[401906504,1768399842949,-506.34451005,0.00013699,2]
[401906506,1768399842959,-500.0,0.00013699,2]
[401906508,1768399842968,-500.0,0.00013699,2]
[401906510,1768399842977,-500.0,0.00013699,2]
[401906514,1768399842986,-500.0,0.00013699,2]
[401906517,1768399842995,-500.0,0.00013699,2]
[401906520,1768399843004,-500.0,0.00013699,2]
[401906521,1768399843014,-501.74975073,0.00013699,2]
[401906524,1768399843023,-500.91728774,0.00013699,2]
[401906525,1768399843032,-500.0,0.00013699,2]
[401906527,1768399843041,-500.0,0.00013699,2]
[401906528,1768399843051,-500.0,0.00013699,2]
[401906529,1768399843060,-500.0,0.00013699,2]
[401906531,1768399843070,-500.0,0.00013699,2]
[401906532,1768399843079,-526.2087109,0.00013699,2]
[401906533,1768399843089,-413.79090585,0.00013699,2]
[401906534,1768399843098,-500.0,0.00013699,2]
[401906535,1768399843107,-500.0,0.00013699,2]
[401906536,1768399843116,-500.0,0.00013699,2]
[401906537,1768399843126,-500.0,0.00013699,2]
[401906538,1768399843136,-500.0,0.00013699,2]
[401906539,1768399843145,-500.0,0.00013699,2]
[401906540,1768399843154,-500.0,0.00013699,2]
[401906541,1768399843163,-500.0,0.00013699,2]
[401906542,1768399843172,-252.90578758,0.00013699,2]
[401906543,1768399843182,-500.0,0.00013699,2]
[401906544,1768399843192,-301.86126485,0.00013699,2]
[401906545,1768399843201,-370.92368598,0.00013699,2]
[401906546,1768399843210,-500.0,0.00013699,2]
[401906547,1768399843219,-500.0,0.00013699,2]
[401906548,1768399843228,-500.0,0.00013699,2]
[401906549,1768399843237,-500.0,0.00013699,2]
[401906550,1768399843246,-500.0,0.00013699,2]
[401906551,1768399843256,-500.0,0.00013699,2]
[401906552,1768399843265,-500.28466628,0.00013699,2]
[401906553,1768399843275,-500.0,0.00013699,2]
[401906554,1768399843284,-500.0,0.00013699,2]
[401906555,1768399843294,-500.0,0.00013699,2]
[401906556,1768399843303,-501.1212268,0.00013699,2]
[401906557,1768399843313,-500.0,0.00013699,2]
[401906558,1768399843322,-500.0,0.00013699,2]
[401906559,1768399843331,-501.05002058,0.00013699,2]
[401906560,1768399843340,-500.0,0.00013699,2]
[401906561,1768399843351,-500.0,0.00013699,2]
[401906562,1768399843360,-500.0,0.00013699,2]
[401906563,1768399843369,-500.0,0.00013699,2]
[401906564,1768399843378,-500.0,0.00013699,2]
[401906565,1768399843387,-500.0,0.00013699,2]
[401906566,1768399843397,-500.0,0.00013699,2]
[401906567,1768399843406,-500.0,0.00013699,2]
[401906568,1768399843415,-500.0,0.00013699,2]
[401906569,1768399843424,-443.99780341,0.00013699,2]
[401906570,1768399843433,-500.0,0.00013699,2]
[401906571,1768399843443,-500.0,0.00013699,2]
[401906572,1768399843452,-500.0,0.00013699,2]
[401906573,1768399843462,-500.0,0.00013699,2]
[401906574,1768399843471,-500.0,0.00013699,2]
[401906575,1768399843480,-500.0,0.00013699,2]
[401906576,1768399843490,-500.0,0.00013699,2]
[401906577,1768399843499,-500.0,0.00013699,2]
[401906578,1768399843508,-500.0,0.00013699,2]
[401906579,1768399843518,-500.0,0.00013699,2]
[401906580,1768399843527,-500.0,0.00013699,2]
[401906581,1768399843536,-283.44680242,0.00013699,2]
[401906582,1768399843546,-1133.78720969,0.00013699,2]
[401906583,1768399843555,-2551.0212218,0.00013699,2]
[401906584,1768399843564,-803.97560773,0.00013699,2]
[401906585,1768399843575,-3215.90243092,0.00013699,2]
[401906586,1768399843584,-227.10151524,0.00013699,2]
[401906587,1768399843593,-908.40606095,0.00013699,2]
[401906588,1768399843603,-2043.91363713,0.00013699,2]
[401906589,1768399843612,-3633.62424379,0.00013699,2]
[401906590,1768399843621,-810.52843633,0.00013699,2]
[401906591,1768399843631,-3242.11374532,0.00013699,2]
[401906592,1768399843641,-5677.53788092,0.00013699,2]
[401906593,1768399843650,-433.32498894,0.00013699,2]
[401906594,1768399843659,-10000.0,0.00013735,2]
[401906595,1768399843669,-10000.0,0.00013735,2]
[401906596,1768399843678,-4343.48,0.00013735,2]
[401906597,1768399843688,-1549.64,0.00013763,2]
[401906598,1768399843697,-4535.14883875,0.00013786,2]
[401906599,1768399843708,-1000.0,0.00013821,2]
[401906600,1768399843717,-1000.0,0.00013821,2]
[401906601,1768399843727,-1000.0,0.00013821,2]
[401906602,1768399843736,-1000.0,0.00013821,2]
[401906603,1768399843745,-1000.0,0.00013821,2]
[401906604,1768399843755,-1000.0,0.00013821,2]
[401906605,1768399843764,-1000.0,0.00013821,2]
[401906606,1768399843774,-1000.0,0.00013821,2]
[401906607,1768399843783,-1000.0,0.00013821,2]
[401906608,1768399843792,-503.63165228,0.00013821,2]
[401906609,1768399843802,-1000.0,0.00013821,2]
[401906610,1768399843811,-386.78841051,0.00013821,2]
[401906611,1768399843820,-284.00644743,0.00013821,2]
[401906612,1768399843830,-1000.0,0.00013821,2]
[401906613,1768399843839,-1002.88869488,0.00013821,2]
[401906614,1768399843848,-771.86141758,0.00013821,2]
[401906615,1768399843858,-1000.0,0.00013821,2]
[401906616,1768399843867,-1000.0,0.00013821,2]
[401906617,1768399843877,-1000.0,0.00013821,2]
[401906618,1768399843887,-1000.0,0.00013821,2]
[401906619,1768399843896,-1000.0,0.00013821,2]
[401906620,1768399843905,-1000.0,0.00013821,2]
[401906621,1768399843914,-604.03491902,0.00013821,2]
[401906622,1768399843924,-1000.0,0.00013821,2]
[401906623,1768399843933,-344.64451203,0.00013821,2]
[401906624,1768399843942,-1000.0,0.00013821,2]
[401906625,1768399843952,-1000.0,0.00013821,2]
[401906626,1768399843962,-1000.0,0.00013821,2]
[401906627,1768399843971,-1000.0,0.00013821,2]
[401906628,1768399843980,-1000.0,0.00013821,2]
[401906629,1768399843990,-424.36340331,0.00013821,2]
[401906630,1768399843999,-1000.0,0.00013821,2]
[401906631,1768399844009,-1003.01901965,0.00013821,2]
[401906632,1768399844019,-440.24648614,0.00013821,2]
[401906633,1768399844028,-1000.0,0.00013821,2]
[401906634,1768399844037,-1000.0,0.00013821,2]
[401906635,1768399844046,-446.5684735,0.00013821,2]
[401906636,1768399844055,-1000.0,0.00013821,2]
[401906637,1768399844065,-31110.0,0.00013928,2]
[401906638,1768399844074,-174.61919141,0.00013928,2]
[401906639,1768399844083,-478.75725327,0.00013928,2]
[401906640,1768399844093,-2312.83697232,0.00013928,2]
[401906641,1768399844103,-150.15988072,0.00013973,2]
[401906642,1768399844113,-600.0,0.00014221,2]
[401906643,1768399844124,-1000.0,0.00014247,2]
[401906644,1768399844134,-500.31646223,0.00014247,2]
[401906645,1768399844144,-1000.0,0.00014247,2]
[401906646,1768399844154,-500.62157755,0.00014247,2]
[401906647,1768399844164,-490.12767117,0.00014247,2]
[401906648,1768399844173,-193.53352259,0.00014247,2]
[401906649,1768399844183,-1000.0,0.00014247,2]
[401906651,1768399844192,-1003.87539742,0.00014247,2]
[401906653,1768399844201,-1000.0,0.00014247,2]
[401906656,1768399844210,-1000.0,0.00014247,2]
[401906658,1768399844219,-1000.0,0.00014247,2]
[401906659,1768399844228,-1000.0,0.00014247,2]
[401906661,1768399844237,-1000.0,0.00014247,2]
[401906663,1768399844247,-919.62973898,0.00014247,2]
[401906664,1768399844257,-1000.0,0.00014247,2]
[401906665,1768399844268,-685.95842189,0.00014247,2]
[401906666,1768399844281,-1003.83285644,0.00014247,2]
[401906667,1768399844291,-501.82501982,0.00014247,2]
[401906668,1768399844300,-1000.0,0.00014247,2]
[401906669,1768399844310,-500.65603222,0.00014247,2]
[401906670,1768399844319,-501.04290038,0.00014247,2]
[401906671,1768399844328,-250.0,0.00014247,2]
[401906673,1768399844338,-501.43010395,0.00014247,2]
[401906674,1768399844349,-500.73561513,0.00014247,2]
[401906676,1768399844358,-1000.0,0.00014247,2]
[401906677,1768399844367,-1000.0,0.00014247,2]
[401906678,1768399844377,-841.41978725,0.00014247,2]
[401906679,1768399844387,-1000.0,0.00014247,2]
[401906680,1768399844396,-1001.28209032,0.00014247,2]
[401906681,1768399844406,-1000.0,0.00014247,2]
[401906682,1768399844415,-1000.0,0.00014247,2]
[401906683,1768399844426,-1001.31706943,0.00014247,2]
[401906684,1768399844435,-1000.0,0.00014247,2]
[401906685,1768399844445,-1000.0,0.00014247,2]
[401906687,1768399844455,-1000.0,0.00014247,2]
[401906689,1768399844464,-1000.0,0.00014247,2]
[401906691,1768399844473,-1000.0,0.00014247,2]
[401906693,1768399844482,-1000.0,0.00014247,2]
[401906695,1768399844491,-501.3857634,0.00014247,2]
[401906697,1768399844500,-1000.0,0.00014247,2]
[401906699,1768399844509,-1000.0,0.00014247,2]
[401906701,1768399844518,-1000.0,0.00014247,2]
[401906702,1768399844528,-1087.16663197,0.00014247,2]
[401906704,1768399844537,-519.65670355,0.00014247,2]
[401906706,1768399844547,-1000.0,0.00014247,2]
[401906708,1768399844556,-1000.0,0.00014247,2]
[401906710,1768399844565,-1000.0,0.00014247,2]
[401906712,1768399844575,-1001.20972535,0.00014247,2]
[401906714,1768399844584,-504.58578591,0.00014247,2]
[401906716,1768399844593,-501.21795351,0.00014247,2]
[401906718,1768399844602,-343.96245491,0.00014247,2]
[401906720,1768399844612,-1000.0,0.00014247,2]
[401906722,1768399844621,-990.87296502,0.00014247,2]
[401906724,1768399844631,-1000.0,0.00014247,2]
[401906726,1768399844641,-1000.0,0.00014247,2]
[401906728,1768399844651,-1000.0,0.00014247,2]
[401906730,1768399844661,-1000.0,0.00014247,2]
[401906732,1768399844671,-8175.65454853,0.00014255,2]
[401906734,1768399844680,-1500.0,0.00014368,2]
[401906736,1768399844690,-153.79187063,0.00014368,2]
[401906738,1768399844699,-1500.0,0.00014368,2]
[401906740,1768399844709,-1500.0,0.00014368,2]
[401906743,1768399844718,-1500.0,0.00014368,2]
[401906744,1768399844727,-1623.81068567,0.00014368,2]
[401906746,1768399844736,-1500.0,0.00014368,2]
[401906748,1768399844745,-1500.0,0.00014368,2]
[401906750,1768399844754,-1348.98491417,0.00014368,2]
[401906752,1768399844764,-1003.76788333,0.00014368,2]
[401906754,1768399844773,-1022.04357159,0.00014368,2]
[401906756,1768399844782,-1355.28517105,0.00014368,2]
[401906758,1768399844791,-502.68632401,0.00014368,2]
[401906760,1768399844800,-822.79494335,0.00014368,2]
[401906762,1768399844810,-1500.0,0.00014368,2]
[401906763,1768399844820,-1500.0,0.00014368,2]
[401906765,1768399844829,-1500.0,0.00014368,2]
[401906767,1768399844838,-1500.0,0.00014368,2]
[401906769,1768399844848,-158.07183809,0.00014368,2]
[401906771,1768399844857,-738.47106789,0.00014368,2]
[401906773,1768399844867,-1500.0,0.00014368,2]
[401906775,1768399844876,-1500.0,0.00014368,2]
[401906777,1768399844886,-1164.35893779,0.00014368,2]
[401906779,1768399844895,-1500.0,0.00014368,2]
[401906781,1768399844904,-1500.0,0.00014368,2]
[401906782,1768399844913,-1500.0,0.00014368,2]
[401906783,1768399844922,-1502.99360219,0.00014368,2]
[401906784,1768399844932,-32261.07,0.00014476,2]
[401906785,1768399844941,-181.08010149,0.00014476,2]
[401906786,1768399844951,-496.47127164,0.00014476,2]
[401906787,1768399844960,-2398.4119403,0.00014476,2]
[401906788,1768399844969,-4947.8161214,0.00014481,2]
[401906789,1768399844978,-5000.0,0.0001451,2]
[401906790,1768399844988,-100000.0,0.0001459,2]
[401906791,1768399844997,-7086.17006054,0.00014617,2]
[401906792,1768399845007,-900.0,0.00014768,2]
[401906793,1768399845016,-1540.3270641,0.00014795,2]
[401906794,1768399845026,-1500.0,0.00014795,2]
[401906795,1768399845035,-1500.0,0.00014795,2]
[401906796,1768399845044,-1159.70838602,0.00014795,2]
[401906797,1768399845053,-586.73306672,0.00014795,2]
[401906798,1768399845063,-1018.01129916,0.00014795,2]
[401906799,1768399845072,-805.98884969,0.00014795,2]
[401906800,1768399845081,-622.97821503,0.00014795,2]
[401906801,1768399845090,-1500.0,0.00014795,2]
[401906802,1768399845279,-200.84224431,0.00014795,2]
[401906803,1768399845289,-665.99620392,0.00014795,2]
[401906804,1768399845298,-1500.0,0.00014795,2]
[401906805,1768399845308,-1500.0,0.00014795,2]
[401906806,1768399845317,-1500.0,0.00014795,2]
[401906807,1768399845326,-1082.85856265,0.00014795,2]
[401906808,1768399845335,-1500.0,0.00014795,2]
[401906809,1768399845344,-1500.0,0.00014795,2]
[401906810,1768399845353,-1479.00156205,0.00014795,2]
[401906811,1768399845362,-1500.0,0.00014795,2]
[401906812,1768399845371,-927.69304459,0.00014795,2]
[401906813,1768399845381,-949.7291255,0.00014795,2]
[401906814,1768399845390,-1500.0,0.00014795,2]
[401906815,1768399845400,-1500.0,0.00014795,2]
[401906816,1768399845409,-1292.00440399,0.00014795,2]
[401906817,1768399845418,-522.48598281,0.00014795,2]
[401906818,1768399845428,-1500.0,0.00014795,2]
[401906819,1768399845438,-1500.0,0.00014795,2]
[401906820,1768399845447,-1500.0,0.00014795,2]
[401906821,1768399845457,-1500.0,0.00014795,2]
[401906822,1768399845468,-827.64226173,0.00014795,2]
[401906823,1768399845478,-1500.0,0.00014795,2]
[401906824,1768399845488,-1051.15225971,0.00014795,2]
[401906825,1768399845499,-600.0,0.00014868,2]
[401906826,1768399845509,-1152.0,0.00014868,2]
[401906827,1768399845518,-1333.0,0.00014878,2]
[401906828,1768399845527,-403.91919138,0.000149,2]
[401906829,1768399845537,-403.91919137,0.000149,2]
[401906830,1768399845548,-403.91919137,0.000149,2]
[401906831,1768399845558,-503.99870158,0.00014916,2]
[401906832,1768399845568,-878.64680697,0.00014916,2]
[401906833,1768399845578,-2000.0,0.00014916,2]
[401906834,1768399845588,-2000.0,0.00014916,2]
[401906835,1768399845598,-2000.0,0.00014916,2]
[401906836,1768399845608,-1993.46298652,0.00014916,2]
[401906837,1768399845617,-2000.0,0.00014916,2]
[401906838,1768399845629,-2000.0,0.00014916,2]
[401906839,1768399845640,-2000.0,0.00014916,2]
[401906840,1768399845649,-1031.81939639,0.00014916,2]
[401906841,1768399845659,-2000.0,0.00014916,2]
[401906842,1768399845669,-1288.90612665,0.00014916,2]
[401906843,1768399845679,-1577.72950273,0.00014916,2]
[401906844,1768399845689,-2000.0,0.00014916,2]
[401906845,1768399845699,-2000.0,0.00014916,2]
[401906846,1768399845708,-11127.97424661,0.00014963,2]
[401906847,1768399845717,-7235.78046958,0.00014993,2]
[401906848,1768399845727,-1000.0,0.00015014,2]
[401906849,1768399845737,-492.0,0.00015014,2]
[401906850,1768399845747,-187.78006525,0.00015024,2]
[401906851,1768399845757,-514.84070869,0.00015024,2]
[401906852,1768399845766,-2487.15318209,0.00015024,2]
[401906853,1768399845775,-748.686707,0.00015068,2]
[401906854,1768399845785,-800.0,0.00015068,2]
[401906855,1768399845794,-7294.75592697,0.00015151,2]
[401906856,1768399845803,-1200.0,0.00015316,2]
[401906857,1768399845812,-927.7193372,0.0001533,2]
[401906858,1768399845821,-2000.0,0.00015342,2]
[401906859,1768399845830,-2094.03075988,0.00015342,2]
[401906860,1768399845839,-992.62086011,0.00015342,2]
[401906861,1768399845849,-503.42728186,0.00015342,2]
[401906862,1768399845858,-2000.0,0.00015342,2]
[401906863,1768399845867,-2000.0,0.00015342,2]
[401906864,1768399845879,-749.49335299,0.00015342,2]
[401906865,1768399845888,-2000.0,0.00015342,2]
[401906866,1768399845898,-2000.0,0.00015342,2]
[401906867,1768399845907,-735.30085754,0.00015342,2]
[401906868,1768399845915,-2000.0,0.00015342,2]
[401906869,1768399845925,-1873.84265648,0.00015342,2]
[401906870,1768399845935,-646.70021057,0.00015342,2]
[401906871,1768399845944,-2000.0,0.00015342,2]
[401906872,1768399845953,-655.35549971,0.00015342,2]
[401906873,1768399845965,-2000.0,0.00015342,2]
[401906874,1768399845975,-500.0,0.000154,7]
[401906875,1768399845985,-500.0,0.000154,2]
[401906876,1768399845994,-500.0,0.000154,10]
[401906877,1768399846004,-417.34,0.000154,2]
[401906878,1768399846014,-633.2980032,0.000154,30]
[401906879,1768399846025,-10204.08488718,0.00015448,2]
[401906880,1768399846035,-1005.48440654,0.00015464,2]
[401906881,1768399846045,-2500.0,0.00015464,2]
[401906882,1768399846055,-2500.0,0.00015464,2]
[401906883,1768399846065,-2500.0,0.00015464,2]
[401906884,1768399846073,-2500.0,0.00015464,2]
[401906885,1768399846084,-2500.0,0.00015464,2]
[401906886,1768399846095,-2500.0,0.00015464,2]
[401906887,1768399846105,-2500.0,0.00015464,2]
[401906888,1768399846116,-2500.0,0.00015464,2]
[401906889,1768399846125,-194.72792766,0.00015572,2]
[401906890,1768399846134,-533.88981491,0.00015572,2]
[401906891,1768399846144,-2579.17784983,0.00015572,2]
[401906892,1768399846155,-1500.0,0.00015864,2]
[401906893,1768399846164,-1711.66599686,0.0001589,2]
[401906894,1768399846173,-559.4878042,0.0001589,2]
[401906895,1768399846183,-2500.0,0.0001589,2]
[401906896,1768399846192,-2500.0,0.0001589,2]
[401906898,1768399846212,-2500.0,0.0001589,2]
[401906899,1768399846221,-2500.0,0.0001589,2]
[401906900,1768399846231,-2500.0,0.0001589,2]
[401906901,1768399846242,-2500.0,0.0001589,2]
[401906902,1768399846252,-3000.0,0.00016,2]
[401906903,1768399846262,-3000.0,0.0001601,2]
[401906904,1768399846276,-1671.14126243,0.00016012,2]
[401906906,1768399846286,-3000.0,0.00016012,2]
[401906908,1768399846295,-3000.0,0.00016012,2]
[401906909,1768399846305,-3000.0,0.00016012,2]
[401906911,1768399846314,-3000.0,0.00016012,2]
[401906913,1768399846323,-3000.0,0.00016012,2]
[401906915,1768399846332,-1185.37019291,0.00016012,2]
[401906917,1768399846343,-3000.0,0.00016012,2]
[401906919,1768399846352,-3000.0,0.0001602,2]
[401906920,1768399846362,-3000.0,0.0001603,2]
[401906921,1768399846371,-3000.0,0.0001604,2]
[401906922,1768399846382,-3000.0,0.0001605,2]
[401906923,1768399846392,-11784.99703,0.0001605,7]
[401906924,1768399846401,-3000.0,0.0001606,2]
[401906925,1768399846410,-38016.119452,0.0001606,7]
[401906926,1768399846420,-1040.479907,0.0001606,7]
[401906927,1768399846429,-3000.0,0.0001607,2]
[401906928,1768399846438,-142560.447946,0.0001607,7]
[401906929,1768399846447,-3000.0,0.0001608,2]
[401906931,1768399846456,-3000.0,0.0001609,2]
[401906933,1768399846465,-3000.0,0.000161,2]
[401906934,1768399846474,-3000.0,0.0001611,2]
[401906936,1768399846483,-201.93286099,0.0001612,2]
[401906938,1768399846493,-553.64373807,0.0001612,2]
[401906939,1768399846502,-2674.60743027,0.0001612,2]
[401906940,1768399846511,-3000.0,0.0001612,2]
[401906941,1768399846521,-3000.0,0.0001613,2]
[401906942,1768399846530,-3000.0,0.0001614,2]
[401906943,1768399846540,-3000.0,0.0001615,2]
[401906944,1768399846549,-5702.417918,0.0001615,7]
[401906945,1768399846559,-3000.0,0.0001616,2]
[401906946,1768399846568,-1600.0,0.00016164,2]
[401906947,1768399846578,-319.55,0.0001617,30]
[401906948,1768399846588,-3000.0,0.0001617,2]
[401906949,1768399846599,-620.66490016,0.0001617,30]
[401906950,1768399846609,-95040.298631,0.0001617,7]
[401906951,1768399846620,-3000.0,0.0001618,2]
[401906952,1768399846630,-3000.0,0.0001619,2]
[401906953,1768399846640,-3000.0,0.000162,2]
[401906954,1768399846650,-3000.0,0.0001621,2]
[401906955,1768399846659,-3000.0,0.0001622,2]
[401906956,1768399846669,-3000.0,0.0001623,2]
[401906957,1768399846678,-3000.0,0.0001624,2]
[401906958,1768399846689,-3000.0,0.0001625,2]
[401906959,1768399846699,-3000.0,0.0001626,2]
[401906960,1768399846709,-3000.0,0.0001627,2]
[401906961,1768399846719,-3000.0,0.0001628,2]
[401906962,1768399846728,-3000.0,0.0001629,2]
[401906963,1768399846738,-3000.0,0.000163,2]
[401906964,1768399846749,-3000.0,0.0001631,2]
[401906965,1768399846759,-3000.0,0.0001632,2]
[401906966,1768399846770,-3000.0,0.0001633,2]
[401906967,1768399846782,-3000.0,0.0001634,2]
[401906968,1768399846792,-3000.0,0.0001635,2]
[401906969,1768399846803,-1613.0,0.00016353,2]
[401906970,1768399846814,-3000.0,0.0001636,2]
[401906971,1768399846823,-3000.0,0.0001637,2]
[401906972,1768399846835,-3000.0,0.0001638,2]
[401906973,1768399846843,-3000.0,0.0001639,2]
[401906974,1768399846856,-3000.0,0.000164,2]
[401906975,1768399846865,-3000.0,0.0001641,2]
[401906976,1768399846874,-1800.0,0.00016412,2]
[401906977,1768399846884,-3000.0,0.0001642,2]
[401906979,1768399846893,-3000.0,0.0001643,2]
[401906981,1768399846902,-500.0,0.00016438,2]
[401906982,1768399846912,-500.0,0.00016438,2]
[401906983,1768399846921,-500.0,0.00016438,2]
[401906984,1768399846930,-500.0,0.00016438,2]
[401906985,1768399846939,-367.29391014,0.00016438,2]
[401906986,1768399846948,-500.0,0.00016438,2]
[401906987,1768399846957,-500.0,0.00016438,2]
[401906988,1768399846966,-595.30780858,0.00016438,2]
[401906989,1768399846975,-200.0,0.00016438,2]
[401906990,1768399846984,-164.26686219,0.00016438,2]
[401906991,1768399846994,-2544.67516775,0.00016438,2]
[401906992,1768399847003,-3000.0,0.00016438,2]
[401906993,1768399847012,-3000.0,0.00016438,2]
[401906994,1768399847021,-3000.0,0.00016438,2]
[401906995,1768399847030,-3000.0,0.00016438,2]
[401906996,1768399847040,-2819.68437302,0.00016438,2]
[401906997,1768399847049,-260.29560408,0.00016438,2]
[401906998,1768399847058,-3000.0,0.0001644,2]
[401906999,1768399847067,-184.29,0.0001644,2]
[401907000,1768399847076,-184.29,0.0001644,2]
[401907001,1768399847085,-184.29,0.0001644,2]
[401907002,1768399847094,-184.29,0.0001644,2]
[401907003,1768399847104,-3000.0,0.0001645,2]
[401907004,1768399847113,-3000.0,0.0001646,2]
[401907005,1768399847122,-3000.0,0.0001647,2]
[401907006,1768399847132,-200.0,0.00016473,2]
[401907007,1768399847142,-3000.0,0.0001648,2]
[401907008,1768399847151,-3000.0,0.0001649,2]
[401907009,1768399847160,-3000.0,0.000165,2]
[401907010,1768399847169,-3000.0,0.0001651,2]
[401907011,1768399847179,-1000.0,0.00016516,2]
[401907012,1768399847187,-791.0,0.00016516,2]
[401907013,1768399847198,-3000.0,0.0001652,2]
[401907014,1768399847207,-3000.0,0.0001653,2]
[401907015,1768399847216,-3000.0,0.0001654,2]
[401907016,1768399847225,-3000.0,0.0001655,2]
[401907017,1768399847234,-3000.0,0.0001656,2]
[401907018,1768399847243,-3500.0,0.0001656,2]
[401907019,1768399847252,-3500.0,0.0001656,2]
[401907020,1768399847261,-3500.0,0.0001656,2]
[401907021,1768399847272,-416.13825137,0.0001656,2]
[401907022,1768399847283,-3500.0,0.0001656,2]
[401907023,1768399847292,-3500.0,0.0001656,2]
[401907024,1768399847301,-3000.0,0.0001657,2]
[401907025,1768399847311,-6537.28548756,0.0001657,2]
[401907026,1768399847320,-4288.882623,0.0001658,2]
[401907027,1768399847328,-151.0,0.0001658,2]
[401907028,1768399847337,-894.119727,0.0001658,2]
[401907029,1768399847348,-894.119727,0.0001658,2]
[401907030,1768399847357,-894.119727,0.0001658,2]
[401907031,1768399847366,-894.119727,0.0001658,2]
[401907032,1768399847375,-209.40437684,0.00016668,2]
[401907033,1768399847387,-574.12855637,0.00016668,2]
[401907034,1768399847396,-2773.56790519,0.00016668,2]
[401907035,1768399847405,-319.55,0.0001694,30]
[401907036,1768399847415,-2100.0,0.0001696,2]
[401907037,1768399847425,-620.03324501,0.00016979,30]
[401907038,1768399847434,-270.0,0.00016986,2]
[401907039,1768399847444,-3587.94374426,0.00016986,2]
[401907040,1768399847454,-3500.0,0.00016986,2]
[401907041,1768399847463,-3500.0,0.00016986,2]
[401907042,1768399847472,-3500.0,0.00016986,2]
[401907043,1768399847482,-4000.0,0.00017108,2]